bitfinex-derivatives/quotes_SOLF0:USTF0_20241016
["timestamp","ask_amount","ask_price","bid_price","bid_amount"]
[1729114265258,12.2389,153.91,153.88,3.18480239]
[1729114265659,12.2389,153.91,153.88,3.2494]
[1729114265862,12.2389,153.91,153.88,6.48002922]
[1729114266064,16.8786,153.92,153.88,6.48002922]
[1729114266666,12.2386,153.92,153.88,6.48002922]
[1729114266863,16.8786,153.92,153.89,3.2491]
[1729114269661,3.2489,153.91,153.88,6.47992922]
[1729114269867,3.2489,153.91,153.88,3.23062922]
[1729114270062,3.2489,153.91,153.86,8.99]
[1729114271360,12.2389,153.91,153.88,3.2494]
[1729114271564,12.2389,153.91,153.88,6.43803516]
[1729114275684,3.2495,153.88,153.85,3.25]
[1729114275881,8.99,153.87,153.84,1.377]
[1729114276281,12.2398,153.87,153.84,4.6271]
[1729114278382,12.2398,153.87,153.84,3.2501]
[1729114278590,3.25,153.86,153.83,3.2503]
[1729114280479,8.99,153.87,153.8,7.455]
[1729114280785,8.99,153.87,153.8,16.445]
[1729114281585,3.2499,153.86,153.83,3.2504]
[1729114281980,8.99,153.87,153.83,3.2504]
[1729114282284,3.2499,153.86,153.83,3.2504]
[1729114285083,13.63,153.88,153.83,8.99]
[1729114285684,16.8794,153.88,153.83,8.99]
[1729114286184,16.8794,153.88,153.8,8.8622]
[1729114286185,3.2499,153.86,153.8,8.8622]
[1729114286391,3.2499,153.86,153.81,8.99]
[1729114286983,3.2499,153.86,153.83,3.2502]
[1729114287184,3.2499,153.86,153.81,8.99]
[1729114287790,3.2504,153.84,153.8,4.2222]
[1729114288093,8.99,153.84,153.8,4.2222]
[1729114288890,8.99,153.84,153.81,3.2507]
[1729114289187,8.99,153.84,153.8,4.2222]
[1729114290388,8.99,153.84,153.82,3.2506]
[1729114292593,12.2403,153.84,153.81,3.2507]
[1729114296494,8.99,153.84,153.8,4.2222]
[1729114296701,12.2402,153.85,153.82,3.2506]
[1729114304903,3.2504,153.84,153.81,3.2508]
[1729114305104,12.2404,153.84,153.81,3.2508]
[1729114310107,3.2507,153.82,153.79,6.46666613]
[1729114310300,3.2507,153.82,153.79,3.2512]
[1729114310812,3.2507,153.82,153.8,3.17168302]
[1729114312006,3.2507,153.82,153.79,3.2512]
[1729114312509,3.2507,153.82,153.8,3.21003299]
[1729114313110,3.2507,153.82,153.79,3.2512]
[1729114313711,3.2507,153.82,153.8,3.20320659]
[1729114313903,3.2507,153.82,153.79,3.2512]
[1729114314606,3.2507,153.82,153.79,6.53664844]
[1729114314914,12.2407,153.82,153.79,6.53664844]
[1729114319515,8.99,153.8,153.7,7.1238248]
[1729114319821,19.51,153.82,153.69,8.99]
[1729114319822,8.99,153.75,153.69,8.99]
[1729114320018,13.63,153.75,153.69,8.99]
[1729114320212,13.63,153.75,153.68,6.03091062]
[1729114320417,3.2528,153.73,153.69,12.2434]
[1729114321614,13.63,153.75,153.69,8.99]
[1729114321820,3.2524,153.74,153.7,3.2531]
[1729114323926,3.2524,153.74,153.7,8.99]
[1729114324127,7.8922,153.75,153.71,3.253]
[1729114324319,4.64,153.76,153.72,8.99]
[1729114324924,4.64,153.76,153.73,3.2525]
[1729114325129,70.22,153.83,153.72,8.99]
[1729114325432,8.99,153.79,153.72,8.99]
[1729114325621,7.8916,153.78,153.74,3.2522]
[1729114326420,7.8916,153.78,153.72,8.99]
[1729114327128,7.8916,153.78,153.73,1.448]
[1729114327626,7.8916,153.78,153.75,3.2521]
[1729114330625,3.2518,153.77,153.75,3.2521]
[1729114330921,4.64,153.78,153.6,3.01902128]
[1729114331120,8.99,153.73,153.68,8.99]
[1729114331330,13.63,153.73,153.68,8.99]
[1729114331829,16.8826,153.73,153.68,12.1766314]
[1729114332924,16.8826,153.73,153.69,3.2533]
[1729114333323,13.63,153.73,153.68,12.1766314]
[1729114333527,3.2529,153.72,153.68,15.4301314]
[1729114334533,3.2529,153.72,153.68,6.4401314]
[1729114335638,4.64,153.73,153.68,3.1866314]
[1729114335826,4.64,153.73,153.69,3.2533]
[1729114336633,4.64,153.73,153.69,6.50412918]
[1729114337333,3.2529,153.72,153.69,6.50412918]
[1729114338227,3.2533,153.7,153.67,3.2538]
[1729114339329,3.2531,153.71,153.67,3.2538]
[1729114341236,3.2531,153.71,153.68,3.2536]
[1729114341431,19.51,153.8,153.69,8.99]
[1729114341735,8.99,153.75,153.69,8.99]
[1729114341937,13.77,153.75,153.69,8.99]
[1729114343233,12.2422,153.75,153.71,3.2528]
[1729114343440,13.77,153.75,153.72,3.32423298]
[1729114344438,3.2525,153.74,153.72,3.32423298]
[1729114346340,8.0322,153.75,153.7,8.99]
[1729114346540,8.0322,153.75,153.7,12.28105246]
[1729114347545,8.0322,153.75,153.72,3.2526]
[1729114355351,3.2522,153.75,153.72,3.2526]
[1729114355740,8.99,153.74,153.7,3.29105246]
[1729114355940,12.2425,153.74,153.71,3.2529]
[1729114356140,12.2425,153.74,153.72,3.23012878]
[1729114357544,12.2425,153.74,153.71,3.2529]
[1729114357755,12.2425,153.74,153.71,6.54699116]
[1729114357947,12.2425,153.74,153.71,3.2529]
[1729114358347,12.2425,153.74,153.72,3.28042948]
[1729114358649,12.2425,153.74,153.71,3.2529]
[1729114358854,3.2525,153.74,153.71,3.2529]
[1729114359261,3.2525,153.74,153.72,3.31523424]
[1729114359651,3.2525,153.74,153.71,3.2529]
[1729114360151,3.2525,153.74,153.71,6.45623858]
[1729114362156,12.2422,153.75,153.72,3.2527]
[1729114365058,3.2524,153.74,153.72,3.2527]
[1729114368753,3.2522,153.75,153.72,3.2527]
[1729114374659,13.77,153.76,153.72,3.2527]
[1729114374860,3.2524,153.74,153.72,3.2527]
[1729114376665,3.2523,153.75,153.71,6.45623858]
[1729114376865,13.77,153.76,153.71,6.45623858]
[1729114377767,3.2525,153.74,153.71,6.45623858]
[1729114380466,3.2528,153.73,153.71,3.20333858]
[1729114380671,13.77,153.76,153.69,4.6285]
[1729114382266,3.2529,153.72,153.69,4.6285]
[1729114384966,3.2534,153.7,153.68,1.4411]
[1729114389167,3.2534,153.69,153.68,1.4411]
[1729114389368,3.2534,153.69,153.66,12.2439]
[1729114389968,3.2536,153.69,153.66,8.99]
[1729114391270,3.2535,153.69,153.66,8.99]
[1729114395276,4.7,153.71,153.66,8.99]
[1729114395477,3.2533,153.7,153.67,3.2538]
[1729114396578,3.2533,153.7,153.66,12.2439]
[1729114398779,3.2533,153.7,153.67,3.2538]
[1729114399181,3.2535,153.69,153.63,1.3735]
[1729114399481,3.2535,153.69,153.65,3.2541]
[1729114399882,3.2536,153.68,153.65,3.2541]
[1729114400278,8.99,153.7,153.65,12.2441]
[1729114400579,13.63,153.7,153.65,12.2441]
[1729114401179,3.2536,153.69,153.65,12.2441]
[1729114404878,16.8833,153.7,153.67,3.2538]
[1729114405081,16.8833,153.7,153.65,8.99]
[1729114405581,16.8833,153.7,153.66,3.2539]
[1729114409584,3.2534,153.69,153.66,3.2539]
[1729114426293,13.63,153.7,153.63,1.3735]
[1729114426500,3.2538,153.68,153.65,3.2542]
[1729114429515,8.99,153.7,153.63,1.3735]
[1729114430395,3.254,153.67,153.63,4.628]
[1729114432699,3.254,153.67,153.63,13.618]
[1729114438901,8.99,153.7,153.63,10.3635]
[1729114439205,3.2537,153.68,153.64,3.2543]
[1729114440506,3.2537,153.68,153.65,3.2541]
[1729114441505,3.2536,153.69,153.65,3.2541]
[1729114442705,4.64,153.73,153.69,3.2533]
[1729114442902,8.99,153.74,153.68,8.99]
[1729114443800,8.99,153.78,153.71,8.99]
[1729114444008,8.99,153.78,153.73,8.99]
[1729114444508,8.99,153.78,153.75,3.2521]
[1729114448309,12.2415,153.79,153.75,3.2521]
[1729114448513,12.2415,153.79,153.73,13.55022216]
[1729114448812,12.2415,153.79,153.74,1.4396]
[1729114449016,12.2415,153.79,153.75,3.252]
[1729114450807,12.2415,153.79,153.74,1.4396]
[1729114451007,12.2415,153.79,153.76,3.2518]
[1729114451210,12.2415,153.79,153.74,10.4296]
[1729114452407,12.2415,153.79,153.76,3.2518]
[1729114454609,8.99,153.79,153.76,3.2518]
[1729114454811,8.99,153.8,153.77,3.2516]
[1729114456819,12.2412,153.8,153.77,3.2516]
[1729114458217,3.2512,153.8,153.77,3.2516]
[1729114458419,12.2412,153.8,153.77,3.2516]
[1729114458621,3.2512,153.8,153.77,3.2516]
[1729114458820,12.2412,153.8,153.77,3.2516]
[1729114460414,19.51,153.89,153.75,8.99]
[1729114460716,8.99,153.83,153.78,8.99]
[1729114461310,8.99,153.83,153.78,10.397]
[1729114461517,8.99,153.85,153.8,8.99]
[1729114461722,12.2401,153.85,153.81,3.2508]
[1729114462415,12.2401,153.85,153.81,6.53786469]
[1729114468026,3.2503,153.84,153.81,6.53786469]
[1729114468721,3.2503,153.84,153.81,15.52786469]
[1729114471326,8.99,153.85,153.81,15.52786469]
[1729114471519,12.2402,153.85,153.81,15.52786469]
[1729114472928,4.66,153.9,153.87,3.2495]
[1729114473230,4.66,153.9,153.82,4.66]
[1729114473231,4.66,153.9,153.86,8.99]
[1729114473420,8.99,153.91,153.86,8.99]
[1729114473625,3.2493,153.89,153.86,12.2398]
[1729114475729,3.2491,153.9,153.87,3.2496]
[1729114477339,3.2491,153.9,153.87,12.2396]
[1729114477733,3.2491,153.9,153.88,3.2494]
[1729114478534,3.2491,153.9,153.89,3.27138247]
[1729114481231,3.249,153.9,153.89,3.27138247]
[1729114481843,3.2489,153.91,153.89,3.27138247]
[1729114482135,3.2489,153.91,153.89,6.52058247]
[1729114482342,3.2489,153.91,153.89,3.2492]
[1729114483044,3.2489,153.91,153.89,6.54279074]
[1729114483530,12.2387,153.92,153.89,6.54279074]
[1729114483930,8.99,153.92,153.89,6.54279074]
[1729114484641,3.2489,153.91,153.89,6.54279074]
[1729114484842,8.99,153.92,153.89,6.54279074]
[1729114485242,3.2488,153.91,153.89,6.54279074]
[1729114486245,8.99,153.93,153.89,3.29359074]
[1729114486443,3.2487,153.92,153.9,3.249]
[1729114486643,3.2487,153.92,153.91,3.19720077]
[1729114488652,3.2489,153.91,153.88,3.2493]
[1729114488944,8.99,153.93,153.88,3.2493]
[1729114489738,8.99,153.92,153.88,3.2493]
[1729114490549,8.99,153.92,153.89,3.31471183]
[1729114490941,3.249,153.9,153.87,3.2495]
[1729114491946,8.99,153.92,153.87,3.2495]
[1729114492541,3.2491,153.9,153.87,3.2495]
[1729114494744,8.99,153.92,153.87,3.2495]
[1729114494949,3.2492,153.89,153.87,3.2495]
[1729114500342,3.249,153.9,153.87,12.2395]
[1729114502751,3.249,153.9,153.87,3.2495]
[1729114505952,8.99,153.92,153.86,13.65]
[1729114506157,3.2489,153.91,153.88,12.2393]
[1729114510657,13.63,153.94,153.88,8.99]
[1729114510867,3.2487,153.92,153.89,3.2492]
[1729114511161,3.2487,153.92,153.9,3.22201016]
[1729114511757,4.64,153.94,153.9,3.22201016]
[1729114512068,3.2484,153.93,153.91,3.2488]
[1729114512462,13.63,153.96,153.91,3.2488]
[1729114512666,3.2482,153.94,153.9,8.99]
[1729114512867,3.2482,153.94,153.92,3.2485]
[1729114513067,3.2482,153.94,153.92,6.5053875]
[1729114515166,91.85619794,153.97,153.92,3.2568875]
[1729114515374,100.84619794,153.97,153.92,8.99]
[1729114515774,100.84619794,153.97,153.92,12.30579289]
[1729114515969,3.2478,153.96,153.94,3.2481]
[1729114516177,3.2478,153.96,153.92,12.30579289]
[1729114516664,3.2478,153.96,153.93,3.2482]
[1729114521478,3.2478,153.96,153.93,3.2483]
[1729114524969,100.84619794,153.97,153.94,3.248]
[1729114524970,95.10369794,153.97,153.94,3.248]
[1729114525571,95.10369794,153.97,153.92,12.30579289]
[1729114525771,3.2475,153.97,153.95,3.2479]
[1729114526878,3.2475,153.97,153.92,12.30579289]
[1729114527177,3.2475,153.97,153.94,3.248]
[1729114529784,8.99,153.98,153.94,3.248]
[1729114530084,3.2477,153.96,153.94,3.248]
[1729114532985,3.2477,153.96,153.92,12.30579289]
[1729114533185,3.2477,153.96,153.93,3.2482]
[1729114534384,70.18,154.02,153.94,8.99]
[1729114534586,8.99,154.0,153.94,8.99]
[1729114535188,8.99,154.0,153.94,12.24745275]
[1729114535384,3.2477,153.96,153.94,15.49545275]
[1729114536289,3.2477,153.96,153.94,3.25745275]
[1729114536490,3.2477,153.96,153.93,3.2482]
[1729114536692,3.2477,153.96,153.93,6.51669386]
[1729114551303,3.2477,153.96,153.94,8.99]
[1729114552603,3.2477,153.96,153.94,12.2381]
[1729114560312,13.63,154.0,153.93,3.26849386]
[1729114560613,13.63,154.0,153.93,12.2382]
[1729114560814,13.63,154.0,153.93,15.49316817]
[1729114561419,3.2479,153.96,153.93,15.49316817]
[1729114570816,3.2479,153.96,153.94,8.99]
[1729114573426,3.2479,153.96,153.94,12.2381]
[1729114575728,3.2476,153.97,153.94,12.2381]
[1729114576330,4.64,154.0,153.96,8.99]
[1729114576331,3.2473,153.98,153.96,8.99]
[1729114577126,3.2473,153.98,153.97,3.28018769]
[1729114595346,3.2472,153.99,153.97,3.2475]
[1729114596046,3.2472,153.99,153.98,3.26178867]
[1729114596447,3.2472,153.99,153.96,12.2376]
[1729114597042,3.2472,153.99,153.96,15.43521023]
[1729114602654,3.2473,153.98,153.96,3.19761023]
[1729114602854,3.2473,153.98,153.96,8.99]
[1729114603057,3.2473,153.98,153.96,12.28859594]
[1729114603955,3.2472,153.99,153.96,15.53629594]
[1729114604350,4.64,154.01,153.96,3.29859594]
[1729114604652,4.64,154.01,153.96,8.99]
[1729114604858,3.247,154.0,153.96,15.40782804]
[1729114605045,4.64,154.01,153.96,15.40782804]
[1729114605242,8.99,154.04,153.96,15.40782804]
[1729114605451,3.2472,153.99,153.96,15.40782804]
[1729114610744,4.64,154.03,153.96,12.16032804]
[1729114610945,4.64,154.03,153.97,3.2474]
[1729114610946,3.247,154.0,153.97,3.2474]
[1729114611348,3.2467,154.01,153.96,15.40782804]
[1729114611552,100.38169293,154.03,153.96,12.16032804]
[1729114612057,100.38169293,154.03,153.97,3.2475]
[1729114612758,3.2471,153.99,153.97,3.2475]
[1729114616459,100.38169293,154.03,153.96,3.17032804]
[1729114616655,100.38169293,154.03,153.94,13.63]
[1729114617257,100.38169293,154.03,153.94,16.88301987]
[1729114617658,100.38169293,154.03,153.97,3.2475]
[1729114620558,3.2471,153.99,153.97,3.2475]
[1729114627257,3.2469,154.0,153.96,3.2476]
[1729114627461,4.62,154.02,153.96,3.2476]
[1729114628168,3.2472,153.99,153.96,3.2476]
[1729114629562,3.2473,153.98,153.96,3.2476]
[1729114634762,4.62,154.02,153.96,3.2476]
[1729114634967,3.2472,153.99,153.96,3.2476]
[1729114643864,3.2475,153.97,153.95,3.2478]
[1729114645673,3.2474,153.98,153.95,3.2478]
[1729114647875,3.2476,153.97,153.94,15.49101987]
[1729114649372,8.99,153.97,153.91,4.2478]
[1729114649578,8.99,153.97,153.91,16.49005693]
[1729114650280,3.2483,153.94,153.91,19.73865693]
[1729114651674,8.99,153.97,153.91,16.49005693]
[1729114652778,3.2483,153.94,153.91,19.73875693]
[1729114659781,3.2485,153.93,153.91,12.24225693]
[1729114659981,3.2485,153.93,153.91,8.99]
[1729114660680,3.2485,153.93,153.92,3.20579021]
[1729114662090,3.2485,153.93,153.91,8.99]
[1729114662284,3.2485,153.93,153.91,12.2373691]
[1729114662578,4.62,153.98,153.88,12.2393]
[1729114662579,3.2489,153.91,153.88,12.2393]
[1729114665582,13.61,153.94,153.88,12.2393]
[1729114665883,3.2489,153.91,153.88,12.2393]
[1729114677391,4.62,153.94,153.89,8.99]
[1729114677597,3.2484,153.93,153.9,3.249]
[1729114677894,3.2484,153.93,153.91,3.25709911]
[1729114678984,3.2486,153.92,153.91,3.25709911]
[1729114679189,3.2486,153.92,153.89,8.99]
[1729114680296,4.62,153.94,153.89,8.99]
[1729114680496,3.2484,153.93,153.9,3.2488]
[1729114680697,3.2484,153.93,153.91,3.22201016]
[1729114689703,3.2486,153.92,153.91,3.22201016]
[1729114692606,3.2485,153.93,153.91,3.2488]
[1729114692905,3.2485,153.93,153.92,3.27735187]
[1729114702119,59.52668406,154.21,153.9,2.7103]
[1729114702302,8.99,153.96,153.9,6.02804183]
[1729114702507,8.99,153.96,153.91,10.4352]
[1729114702708,8.99,153.96,153.91,13.67173488]
[1729114703111,3.248,153.95,153.93,3.2481]
[1729114703611,8.99,153.98,153.92,8.99]
[1729114703819,3.2478,153.96,153.94,3.2481]
[1729114708013,3.2479,153.95,153.93,3.2482]
[1729114708718,3.2483,153.94,153.92,3.2485]
[1729114710715,4.62,153.99,153.91,3.23653488]
[1729114711016,3.2485,153.93,153.9,5.9591]
[1729114711419,3.2485,153.93,153.9,9.25497269]
[1729114718928,3.2485,153.93,153.9,18.24497269]
[1729114728541,3.2485,153.93,153.9,9.25497269]
[1729114728743,3.2485,153.93,153.9,18.24497269]
[1729114729749,3.2484,153.93,153.9,18.24497269]
[1729114730849,3.2484,153.93,153.91,3.2487]
[1729114746055,3.2484,153.93,153.91,3.2488]
[1729114747056,3.2486,153.92,153.9,9.25507269]
[1729114747463,8.99,153.94,153.9,3.29587269]
[1729114747652,8.99,153.94,153.88,3.2494]
[1729114747858,8.99,153.93,153.88,3.2494]
[1729114748956,3.249,153.9,153.88,3.2494]
[1729114753454,3.249,153.9,153.87,12.2395]
[1729114787792,3.249,153.9,153.87,3.2495]
[1729114800201,3.2488,153.91,153.88,3.2492]
[1729114800402,3.2488,153.91,153.88,12.2392]
[1729114805203,3.2488,153.91,153.88,3.2492]
[1729114807303,4.6,153.93,153.86,66.90143493]
[1729114807604,4.6,153.93,153.89,3.2491]
[1729114807804,4.6,153.93,153.9,3.29272254]
[1729114808708,4.6,153.93,153.86,66.90143493]
[1729114809408,3.2489,153.91,153.88,3.2494]
[1729114812499,3.2492,153.9,153.87,3.2496]
[1729114814304,3.2492,153.89,153.87,3.2496]
[1729114828420,3.2491,153.9,153.87,3.2496]
[1729114838715,3.2491,153.9,153.88,3.2494]
[1729114840631,3.2489,153.91,153.88,3.2494]
[1729114841034,4.6,153.93,153.88,3.2494]
[1729114841227,3.2487,153.92,153.88,3.2494]
[1729114841426,4.6,153.93,153.88,3.2493]
[1729114841924,3.249,153.91,153.88,3.2493]
[1729114844234,3.249,153.9,153.88,3.2493]
[1729114846638,3.2489,153.91,153.88,3.2493]
[1729114848444,4.6,153.93,153.87,8.99]
[1729114848944,3.2489,153.91,153.88,3.2493]
[1729114864963,3.2489,153.91,153.89,3.2492]
[1729114866462,7.8485,153.93,153.9,6.55820764]
[1729114866763,7.8485,153.93,153.9,3.2488]
[1729114866962,3.2486,153.92,153.9,3.2488]
[1729114867165,3.2486,153.92,153.9,6.46853588]
[1729114872575,3.2488,153.91,153.86,1.4572]
[1729114872765,13.59,153.9,153.84,58.23141376]
[1729114872961,8.99,153.87,153.81,3.28706469]
[1729114873165,8.99,153.87,153.84,3.2501]
[1729114873166,3.2497,153.87,153.84,3.2501]
[1729114873469,8.99,153.89,153.84,8.99]
[1729114874267,4.6,153.9,153.85,8.99]
[1729114874472,4.6,153.9,153.86,8.99]
[1729114874969,102.72033232,153.93,153.86,8.99]
[1729114875468,3.2488,153.91,153.86,8.99]
[1729114875668,102.72033232,153.93,153.88,8.99]
[1729114875966,92.37883232,153.93,153.88,8.99]
[1729114876167,92.37883232,153.93,153.89,8.99]
[1729114876668,89.13033232,153.93,153.91,3.2487]
[1729114876875,89.13033232,153.93,153.92,3.20279493]
[1729114877574,89.13033232,153.93,153.92,6.45139493]
[1729114877768,89.13033232,153.93,153.89,8.99]
[1729114878363,89.13033232,153.93,153.9,3.2489]
[1729114878671,89.13033232,153.93,153.9,6.45933399]
[1729114879166,98.12033232,153.93,153.87,2.8036]
[1729114879383,13.59,153.92,153.87,2.8036]
[1729114880270,3.2489,153.91,153.87,6.053]
[1729114880778,3.249,153.9,153.87,6.053]
[1729114881774,3.249,153.9,153.87,15.043]
[1729114884373,3.2489,153.91,153.88,3.2494]
[1729114886780,3.249,153.9,153.88,3.2494]
[1729114890782,3.2488,153.91,153.88,12.2394]
[1729114891590,3.2488,153.91,153.88,8.99]
[1729114891774,3.2488,153.91,153.89,3.2492]
[1729114893088,7.8486,153.92,153.9,3.19569878]
[1729114894296,7.8486,153.92,153.9,6.44469878]
[1729114903900,3.2486,153.92,153.9,6.44469878]
[1729114911710,89.13033232,153.93,153.9,6.44469878]
[1729114912009,3.2488,153.91,153.9,6.44469878]
[1729114912206,8.99,153.92,153.88,3.2494]
[1729114912607,3.2491,153.9,153.88,3.2494]
[1729114913410,3.2491,153.9,153.87,6.0531]
[1729114925121,3.2491,153.9,153.87,2.8036]
[1729114925320,3.2491,153.9,153.87,6.0531]
[1729114926220,8.99,153.88,153.82,56.00017759]
[1729114926415,4.58,153.87,153.82,3.2441032]
[1729114926720,3.2502,153.85,153.82,3.2506]
[1729114926923,3.2502,153.85,153.83,3.32607706]
[1729114933515,3.2502,153.85,153.82,12.2406]
[1729114933720,7.8296,153.87,153.84,12.2401]
[1729114934424,7.8296,153.87,153.85,3.25]
[1729114949036,7.8296,153.87,153.84,3.2502]
[1729114949641,3.2498,153.86,153.84,3.2502]
[1729114952939,13.57,153.87,153.78,11.92443293]
[1729114953141,13.57,153.87,153.8,8.99]
[1729114953438,3.2503,153.84,153.8,8.99]
[1729114954644,3.2503,153.84,153.81,3.2507]
[1729114959150,3.2503,153.84,153.82,3.2506]
[1729114980364,13.57,153.87,153.78,11.92443293]
[1729114980571,3.2503,153.84,153.81,3.2508]
[1729114982465,3.2503,153.84,153.82,3.2506]
[1729114989276,3.2501,153.85,153.82,3.2506]
[1729114990267,13.57,153.87,153.79,8.99]
[1729114990467,3.2504,153.84,153.81,3.2507]
[1729114991276,3.2504,153.84,153.79,8.99]
[1729114991473,3.2504,153.84,153.82,3.2506]
[1729114998483,4.58,153.85,153.78,11.92443293]
[1729114998777,4.58,153.85,153.78,7.34443293]
[1729114998982,8.99,153.84,153.78,7.34443293]
[1729114999978,3.251,153.81,153.78,10.59593293]
[1729115000381,8.99,153.84,153.78,7.34443293]
[1729115001478,3.2508,153.82,153.79,3.2512]
[1729115003385,8.99,153.82,153.78,3.29423293]
[1729115003592,3.2512,153.8,153.77,3.2516]
[1729115003781,3.2512,153.8,153.78,3.31025882]
[1729115011494,3.2512,153.8,153.78,3.2515]
[1729115011789,3.2512,153.8,153.78,6.49088508]
[1729115026405,12.2412,153.8,153.78,6.49088508]
[1729115027701,3.2516,153.78,153.75,3.252]
[1729115027900,71.25870242,153.79,153.72,11.7313]
[1729115028509,3.2516,153.78,153.75,3.252]
[1729115028805,3.2516,153.78,153.76,3.19307468]
[1729115030401,3.2516,153.78,153.75,3.252]
[1729115030600,80.24870242,153.79,153.72,2.7413]
[1729115030800,80.24870242,153.79,153.74,3.2523]
[1729115031109,3.2518,153.77,153.74,3.2523]
[1729115031404,4.58,153.76,153.74,3.2523]
[1729115033407,7.832,153.76,153.73,3.2525]
[1729115038409,3.2523,153.75,153.72,3.2526]
[1729115042509,4.58,153.76,153.72,3.2526]
[1729115042510,7.832,153.76,153.72,3.2526]
[1729115043026,3.2522,153.75,153.72,3.2526]
[1729115044320,3.2524,153.74,153.71,3.2529]
[1729115047621,8.99,153.75,153.69,11.7422]
[1729115049525,3.2524,153.74,153.71,3.2529]
[1729115050433,3.2531,153.71,153.68,3.2536]
[1729115050621,13.57,153.72,153.69,3.18414717]
[1729115050829,3.253,153.71,153.69,3.18414717]
[1729115051020,3.253,153.71,153.68,3.2536]
[1729115051211,8.99,153.72,153.68,3.26188863]
[1729115051415,8.99,153.72,153.66,11.7643]
[1729115052023,8.99,153.72,153.66,15.04472948]
[1729115052319,8.99,153.72,153.67,12.2438]
[1729115052718,16.8227,153.73,153.69,3.2532]
[1729115053527,16.8227,153.73,153.7,3.2532]
[1729115056026,4.58,153.73,153.67,10.3115]
[1729115056725,4.58,153.73,153.71,3.2529]
[1729115070137,4.58,153.73,153.72,3.2528]
[1729115071233,3.2522,153.75,153.72,3.2528]
[1729115071436,7.8922,153.75,153.72,3.2528]
[1729115074430,3.2524,153.74,153.72,3.2528]
[1729115084259,3.2527,153.73,153.7,3.2532]
[1729115090260,4.64,153.75,153.68,8.99]
[1729115090457,3.2525,153.74,153.71,3.2529]
[1729115092964,3.2525,153.74,153.68,8.99]
[1729115093666,3.2525,153.74,153.71,3.2529]
[1729115095767,4.64,153.75,153.67,1.3215]
[1729115096074,3.2528,153.72,153.69,3.2533]
[1729115097569,3.2526,153.73,153.7,3.2531]
[1729115114882,3.2523,153.75,153.72,3.2527]
[1729115117283,70.34379848,153.77,153.75,3.2521]
[1729115117284,78.17559848,153.77,153.75,3.2521]
[1729115117880,74.92379848,153.77,153.75,3.2521]
[1729115118487,70.34379848,153.77,153.75,3.2521]
[1729115119178,73.59549848,153.77,153.75,3.2521]
[1729115129193,73.59549848,153.77,153.74,6.46312417]
[1729115129392,73.59549848,153.77,153.74,3.2523]
[1729115129890,73.59549848,153.77,153.75,3.29626016]
[1729115138002,3.2517,153.77,153.75,3.29626016]
[1729115138593,4.58,153.79,153.75,6.54826016]
[1729115138798,4.58,153.79,153.75,3.252]
[1729115138799,3.2516,153.78,153.75,3.252]
[1729115139301,3.2516,153.78,153.75,6.5604027]
[1729115140091,13.57,153.79,153.75,6.5604027]
[1729115140293,3.2517,153.77,153.75,6.5604027]
[1729115144005,13.57,153.79,153.75,3.3084027]
[1729115144307,13.57,153.79,153.71,1.3738]
[1729115144507,3.2518,153.77,153.74,3.2522]
[1729115144710,3.2518,153.77,153.75,3.25713728]
[1729115145204,4.58,153.79,153.75,3.25713728]
[1729115145509,3.2517,153.78,153.74,3.2523]